bitfinex-derivatives/quotes_BTCF0:USTF0_20250803
["timestamp","ask_amount","ask_price","bid_price","bid_amount"]
[1754231436790,0.49842284,113780.0,113770.0,0.87239052]
[1754231436993,0.67420304,113780.0,113770.0,1.23319052]
[1754231437690,0.49842284,113780.0,113770.0,1.23319052]
[1754231440196,0.67420304,113780.0,113770.0,1.23319052]
[1754231442505,0.67420304,113780.0,113770.0,1.49689052]
[1754231442695,0.49842284,113780.0,113770.0,1.49689052]
[1754231442899,0.10267284,113780.0,113770.0,1.49689052]
[1754231444504,0.05415284,113780.0,113770.0,1.23319052]
[1754231445699,0.10267284,113780.0,113770.0,1.23319052]
[1754231446600,0.02413064,113780.0,113770.0,1.49689052]
[1754231446803,0.002,113780.0,113770.0,1.67267452]
[1754231447507,0.04852,113800.0,113790.0,0.1757647]
[1754231447701,0.07071093,113800.0,113790.0,1.35621962]
[1754231448103,0.63169023,113800.0,113790.0,0.8104447]
[1754231449204,0.63869023,113800.0,113790.0,0.8114447]
[1754231450200,0.63669023,113800.0,113790.0,0.8114447]
[1754231451303,0.63169023,113800.0,113790.0,1.0795447]
[1754231455407,0.6094993,113800.0,113790.0,1.0795447]
[1754231455812,0.43375,113800.0,113790.0,1.0795447]
[1754231456007,0.43375,113800.0,113790.0,1.36161962]
[1754231456312,0.43375,113800.0,113790.0,1.72241962]
[1754231456506,0.43375,113800.0,113790.0,1.1766447]
[1754231456711,0.6094993,113800.0,113790.0,1.72241962]
[1754231456912,0.43375,113800.0,113790.0,1.72241962]
[1754231457105,0.47046057,113810.0,113790.0,1.67847182]
[1754231457311,0.65772258,113810.0,113800.0,0.4622986]
[1754231457715,0.70624258,113810.0,113800.0,0.4622986]
[1754231458510,0.70824258,113810.0,113800.0,0.4622986]
[1754231459010,0.66430908,113810.0,113800.0,0.4622986]
[1754231459514,0.48956258,113810.0,113800.0,1.00907352]
[1754231459813,0.27593258,113810.0,113800.0,1.01347352]
[1754231460217,0.08218057,113810.0,113800.0,1.01347352]
[1754231460816,0.08233922,113810.0,113800.0,1.01347352]
[1754231461519,0.003,113810.0,113800.0,1.01347352]
[1754231461720,0.05152,113810.0,113800.0,1.01347352]
[1754231463218,0.003,113810.0,113800.0,1.27717352]
[1754231463621,0.05152,113810.0,113800.0,2.49313352]
[1754231465619,1.15825882,113810.0,113800.0,1.9473586]
[1754231465814,1.15825882,113810.0,113800.0,2.2209186]
[1754231466613,1.15825882,113810.0,113800.0,1.9473586]
[1754231467008,1.15825882,113810.0,113800.0,2.2208786]
[1754231467519,0.6124839,113810.0,113800.0,2.2208786]
[1754231468512,0.6124839,113810.0,113800.0,1.9343293]
[1754231469120,0.6124839,113810.0,113800.0,1.6706293]
[1754231470622,0.6124839,113810.0,113800.0,1.6743693]
[1754231471010,0.6124839,113810.0,113800.0,2.0351693]
[1754231471210,0.6124839,113810.0,113800.0,1.6743693]
[1754231471415,0.43675,113810.0,113800.0,2.0351693]
[1754231471622,0.6124839,113810.0,113800.0,2.0351693]
[1754231472026,0.43675,113810.0,113800.0,2.0351693]
[1754231472621,0.13451,113810.0,113800.0,2.58094422]
[1754231472822,0.4513,113810.0,113800.0,2.58094422]
[1754231473018,0.38,113810.0,113800.0,2.58094422]
[1754231474020,0.555734,113810.0,113800.0,2.58094422]
[1754231474223,0.4513,113810.0,113800.0,2.58094422]
[1754231474628,0.04831,113810.0,113800.0,2.58094422]
[1754231474925,0.003,113810.0,113800.0,2.84464422]
[1754231475127,0.04831,113810.0,113800.0,2.84464422]
[1754231477042,0.04831,113810.0,113800.0,2.2987093]
[1754231477233,0.04831,113810.0,113800.0,2.84448422]
[1754231479244,0.04631,113810.0,113800.0,2.84448422]
[1754231479541,0.04631,113810.0,113800.0,2.84548422]
[1754231479941,0.04631,113810.0,113800.0,2.84648422]
[1754231480742,0.04531,113810.0,113800.0,2.84448422]
[1754231480942,0.04631,113810.0,113800.0,2.84648422]
[1754231481942,0.001,113810.0,113800.0,2.84648422]
[1754231482643,0.001,113810.0,113800.0,2.3007093]
[1754231482839,0.001,113810.0,113800.0,3.39225914]
[1754231483040,0.001,113810.0,113800.0,2.3007093]
[1754231483236,0.001,113810.0,113800.0,2.84648422]
[1754231485451,0.001,113810.0,113800.0,2.3007093]
[1754231485952,0.001,113810.0,113800.0,2.0273493]
[1754231486251,0.04631,113810.0,113800.0,2.3005493]
[1754231486642,0.04631,113810.0,113800.0,2.84632422]
[1754231487047,0.001,113810.0,113800.0,2.84632422]
[1754231487648,0.001,113810.0,113800.0,3.56783514]
[1754231488143,0.04531,113830.0,113820.0,0.1014368]
[1754231488450,0.06746717,113830.0,113820.0,1.54927172]
[1754231488852,0.29813717,113830.0,113820.0,1.54927172]
[1754231489151,0.46724717,113830.0,113820.0,1.54927172]
[1754231489551,0.46824717,113830.0,113820.0,1.54927172]
[1754231490147,0.64495017,113830.0,113820.0,1.0034968]
[1754231490452,0.64495017,113830.0,113820.0,1.54927172]
[1754231491047,0.64495017,113830.0,113820.0,1.0034968]
[1754231491448,0.46924717,113830.0,113820.0,1.0034968]
[1754231491855,0.46924717,113830.0,113820.0,1.54927172]
[1754231492853,0.64495017,113830.0,113820.0,1.54927172]
[1754231493956,0.46924717,113830.0,113820.0,1.54927172]
[1754231494551,0.64495027,113830.0,113820.0,1.54927172]
[1754231495349,0.6227931,113830.0,113820.0,1.54927172]
[1754231495853,0.06945138,113830.0,113820.0,1.54927172]
[1754231496556,0.04731,113830.0,113820.0,1.54927172]
[1754231497046,0.04731,113830.0,113820.0,1.91007172]
[1754231498454,0.19499,113830.0,113820.0,1.91007172]
[1754231498654,0.04731,113830.0,113820.0,1.91007172]
[1754231500250,0.04631,113830.0,113820.0,1.3652968]
[1754231500446,0.04531,113830.0,113820.0,1.91107172]
[1754231500645,0.04531,113830.0,113820.0,1.91301172]
[1754231501061,0.04531,113830.0,113820.0,1.91201172]
[1754231501361,0.04531,113830.0,113820.0,1.91301172]
[1754231502459,0.04531,113830.0,113820.0,1.91281172]
[1754231503664,0.617843,113830.0,113820.0,1.0940768]
[1754231503973,1.5465614,113830.0,113820.0,0.1068368]
[1754231504168,1.64422931,113830.0,113820.0,0.3797568]
[1754231504459,1.64422931,113830.0,113820.0,0.0054]
[1754231504659,1.64422931,113830.0,113820.0,0.4540384]
[1754231505354,1.64422931,113830.0,113810.0,0.2635893]
[1754231505355,0.6207184,113820.0,113810.0,0.2635893]
[1754231505551,1.5494368,113820.0,113810.0,0.5364693]
[1754231505863,1.64847937,113820.0,113810.0,0.5364693]
[1754231507768,1.64947937,113820.0,113810.0,0.5364693]
[1754231509071,1.10470445,113820.0,113810.0,0.5384093]
[1754231509473,1.10470445,113820.0,113810.0,0.5709293]
[1754231510066,0.74390445,113820.0,113810.0,0.5709293]
[1754231510466,0.64486188,113820.0,113810.0,0.5720893]
[1754231510672,0.64486188,113820.0,113810.0,0.6192093]
[1754231511169,0.46914348,113820.0,113810.0,0.9800093]
[1754231511471,0.26906,113820.0,113810.0,1.52578422]
[1754231511776,0.05017,113820.0,113810.0,1.52578422]
[1754231511971,0.04917,113820.0,113810.0,1.52578422]
[1754231512367,0.6217184,113820.0,113810.0,1.52578422]
[1754231512764,0.6217184,113820.0,113810.0,0.9800093]
[1754231513369,0.6207184,113820.0,113810.0,0.9810093]
[1754231514169,0.6207184,113820.0,113810.0,0.9800093]
[1754231514374,0.6217184,113820.0,113810.0,0.9820093]
[1754231514770,0.6217184,113820.0,113810.0,0.9830093]
[1754231515376,0.6217184,113820.0,113810.0,1.52878422]
[1754231515776,0.446,113820.0,113810.0,1.52878422]
[1754231516483,0.001,113820.0,113810.0,1.79248422]
[1754231517670,0.04817,113820.0,113810.0,1.79048422]
[1754231517870,0.04917,113820.0,113810.0,1.79448422]
[1754231518066,0.6217184,113820.0,113810.0,1.2485893]
[1754231518266,0.6217184,113820.0,113810.0,1.79436422]
[1754231518478,0.446,113820.0,113810.0,1.79436422]
[1754231519676,0.445,113820.0,113810.0,1.79036422]
[1754231519879,0.446,113820.0,113810.0,1.79436422]
[1754231523882,0.445,113820.0,113810.0,1.79236422]
[1754231524082,0.446,113820.0,113810.0,1.79636422]
[1754231524287,0.446,113820.0,113810.0,1.79836422]
[1754231526388,0.6217184,113820.0,113810.0,1.2072493]
[1754231526576,0.6217184,113820.0,113810.0,1.2524293]
[1754231527282,0.6217184,113820.0,113810.0,0.8866293]
[1754231527486,0.6217184,113820.0,113810.0,1.2484293]
[1754231527684,0.6207184,113820.0,113810.0,1.2444293]
[1754231527988,0.6207184,113820.0,113810.0,1.2464293]
[1754231529089,0.6207184,113820.0,113810.0,1.2454293]
[1754231529292,0.6207184,113820.0,113810.0,1.2444293]
[1754231530096,0.6207184,113820.0,113810.0,1.2434293]
[1754231530385,0.6217184,113820.0,113810.0,1.2454293]
[1754231530594,1.52829332,113820.0,113810.0,0.4502939]
[1754231530787,1.18966519,113820.0,113810.0,0.4502939]
[1754231531580,1.18966519,113820.0,113810.0,0.1797339]
[1754231531786,1.18966519,113820.0,113810.0,0.4522539]
[1754231531989,1.16749332,113820.0,113810.0,0.4522539]
[1754231532194,1.16649332,113820.0,113810.0,0.4482539]
[1754231532489,1.16649332,113820.0,113810.0,0.4502539]
[1754231533296,1.18867188,113820.0,113810.0,0.4502539]
[1754231533498,0.64289696,113820.0,113810.0,0.4492539]
[1754231533792,0.64289696,113820.0,113810.0,0.4502539]
[1754231534393,0.64289696,113820.0,113810.0,0.4492539]
[1754231535792,0.64289696,113820.0,113810.0,0.4813339]
[1754231536095,0.64289696,113820.0,113810.0,0.5289639]
[1754231536392,0.64289696,113820.0,113810.0,0.5299639]
[1754231537186,0.64289696,113820.0,113810.0,0.8907639]
[1754231537392,0.64289696,113820.0,113810.0,0.5299639]
[1754231537893,0.64289696,113820.0,113810.0,0.8907639]
[1754231538088,0.64289696,113820.0,113810.0,0.8897639]
[1754231538397,0.64289696,113820.0,113810.0,0.8887639]
[1754231538583,0.64289696,113820.0,113810.0,0.8897639]
[1754231539196,0.64289696,113820.0,113810.0,0.8887639]
[1754231539396,0.64289696,113820.0,113810.0,0.5279639]
[1754231541286,0.64289696,113820.0,113810.0,0.8887639]
[1754231541684,0.64289696,113820.0,113810.0,0.5279639]
[1754231542095,0.64289696,113820.0,113810.0,0.4803339]
[1754231543703,0.64289696,113820.0,113810.0,0.2078139]
[1754231543902,0.64289696,113820.0,113810.0,0.4802139]
[1754231544397,1.00369696,113820.0,113810.0,0.4802139]
[1754231545299,1.54947188,113820.0,113810.0,0.4802139]
[1754231545898,1.54947188,113820.0,113810.0,0.4481339]
[1754231546094,1.18867188,113820.0,113810.0,0.4481339]
[1754231546495,0.64289696,113820.0,113810.0,0.4481339]
[1754231546988,0.64289696,113820.0,113810.0,0.4802139]
[1754231555000,1.54947188,113820.0,113810.0,0.1757339]
[1754231555202,1.64809949,113820.0,113810.0,0.4479739]
[1754231558415,1.64909949,113820.0,113810.0,0.4479739]
[1754231558604,1.65109949,113820.0,113810.0,0.4479739]
[1754231560217,1.47538109,113820.0,113800.0,0.2636112]
[1754231560409,0.6154294,113800.0,113790.0,1.2158]
[1754231560710,1.63934352,113800.0,113790.0,1.2158]
[1754231561315,0.6155002,113780.0,113770.0,0.6547133]
[1754231561515,0.6155002,113780.0,113770.0,0.9268333]
[1754231562610,0.6155002,113780.0,113770.0,0.7005233]
[1754231562810,0.6155002,113780.0,113770.0,0.9736433]
[1754231563314,0.6155002,113780.0,113770.0,0.9746433]
[1754231563714,0.6155002,113780.0,113770.0,0.7025233]
[1754231563916,0.6155002,113780.0,113770.0,0.9746433]
[1754231564722,0.6155002,113780.0,113770.0,0.9736433]
[1754231564922,0.66069992,113780.0,113770.0,0.9756433]
[1754231565327,0.66069992,113780.0,113770.0,0.5708945]
[1754231565522,0.66069992,113780.0,113770.0,0.5698945]
[1754231565725,0.66069992,113780.0,113770.0,0.5728945]
[1754231565911,0.66069992,113780.0,113770.0,0.5270845]
[1754231566118,0.68317456,113780.0,113770.0,0.5270845]
[1754231566419,1.02149992,113780.0,113770.0,0.5270845]
[1754231567220,1.02149992,113780.0,113770.0,0.5250845]
[1754231567517,1.02149992,113780.0,113770.0,0.5708945]
[1754231567717,1.02049992,113780.0,113770.0,0.5698945]
[1754231568321,1.56627484,113780.0,113770.0,0.4938545]
[1754231568528,1.65807756,113780.0,113770.0,0.4498657]
[1754231570122,1.68052674,113780.0,113770.0,0.4488657]
[1754231570328,1.68152674,113780.0,113770.0,0.4488657]
[1754231570930,1.65907756,113780.0,113770.0,0.4488657]
[1754231571628,1.65907756,113780.0,113770.0,0.4478657]
[1754231571827,1.11330264,113780.0,113770.0,0.4488657]
[1754231572022,1.65907756,113780.0,113770.0,0.4488657]
[1754231572226,1.65807756,113780.0,113770.0,0.4488657]
[1754231572430,1.68051643,113780.0,113770.0,0.4498657]
[1754231572628,1.68151643,113780.0,113770.0,0.4488657]
[1754231572924,1.65907756,113780.0,113770.0,0.4478657]
[1754231573126,1.66007756,113780.0,113770.0,0.4478657]
[1754231573920,1.68267513,113780.0,113770.0,0.4478657]
[1754231574830,1.68167513,113780.0,113770.0,0.4478657]
[1754231575033,1.68167513,113780.0,113770.0,0.4488657]
[1754231575231,1.68067513,113780.0,113770.0,0.4488657]
[1754231575432,1.68067513,113780.0,113770.0,0.4498657]
[1754231576133,1.68067513,113780.0,113770.0,0.4488657]
[1754231576334,1.68167513,113780.0,113770.0,0.4488657]
[1754231576535,1.68267513,113780.0,113770.0,0.4478657]
[1754231577435,1.13690021,113780.0,113770.0,0.4478657]
[1754231577830,1.68267513,113780.0,113770.0,0.4478657]
[1754231585543,0.4834186,113770.0,113750.0,2.1480619]
[1754231585736,0.3515811,113760.0,113750.0,2.0684087]
[1754231586040,1.1839232,113760.0,113750.0,1.7076087]
[1754231586242,1.1839232,113760.0,113730.0,1.01937287]
[1754231586243,0.34284,113750.0,113730.0,0.4505742]
[1754231586436,1.65401632,113750.0,113740.0,0.1758414]
[1754231586633,1.08689963,113750.0,113740.0,0.1758414]
[1754231586836,1.08689963,113750.0,113740.0,0.2060714]
[1754231587345,1.08689963,113750.0,113740.0,0.2518814]
[1754231587648,1.08689963,113750.0,113740.0,0.2060714]
[1754231587854,1.08489963,113750.0,113740.0,0.2060714]
[1754231588149,1.08289963,113750.0,113740.0,0.2060714]
[1754231588646,0.72209963,113750.0,113740.0,0.2060714]
[1754231589047,0.72209963,113750.0,113740.0,0.2100714]
[1754231589255,0.72209963,113750.0,113740.0,0.1798414]
[1754231589564,0.72209963,113750.0,113740.0,0.2100714]
[1754231590044,1.08289963,113750.0,113740.0,0.03423]
[1754231590247,1.62867455,113750.0,113740.0,0.179842]
[1754231590447,1.72915288,113750.0,113740.0,0.179842]
[1754231592746,1.18337796,113750.0,113740.0,0.179842]
[1754231592951,1.72915288,113750.0,113740.0,0.179842]
[1754231593553,1.72914591,113750.0,113740.0,0.179842]
[1754231594855,1.18337099,113750.0,113740.0,0.179842]
[1754231595055,1.72914591,113750.0,113740.0,0.179842]
[1754231597557,0.63417306,113750.0,113740.0,0.80325692]
[1754231597761,0.45833106,113750.0,113740.0,1.16405692]
[1754231597959,0.63415756,113750.0,113740.0,0.618282]
[1754231598358,0.63415756,113750.0,113740.0,1.16405692]
[1754231598855,0.45833106,113750.0,113740.0,1.16405692]
[1754231599056,0.63415756,113750.0,113740.0,1.16405692]
[1754231599956,0.63415756,113750.0,113740.0,0.618282]
[1754231601355,0.63415756,113750.0,113740.0,0.572462]
[1754231601356,1.17993248,113750.0,113740.0,0.572462]
[1754231603162,1.17993248,113750.0,113740.0,0.57366135]
[1754231603752,1.54073248,113750.0,113740.0,0.18104135]
[1754231603957,1.63819449,113750.0,113740.0,0.18104135]
[1754231604164,1.63819449,113750.0,113740.0,0.18104155]
[1754231605256,1.09241957,113750.0,113740.0,0.00519935]
[1754231605459,1.63819449,113750.0,113740.0,0.00519935]
[1754231605763,1.63819449,113750.0,113740.0,0.18104155]
[1754231605961,1.63819449,113750.0,113740.0,0.00519935]
[1754231606761,0.1758422,113740.0,113730.0,0.2198107]
[1754231606960,0.1758422,113740.0,113710.0,2.0705104]
[1754231606961,0.4236531,113720.0,113710.0,2.0705104]
[1754231607153,0.9683731,113720.0,113710.0,1.6657405]
[1754231607356,0.9683731,113720.0,113710.0,1.6640886]
[1754231607758,1.53674735,113720.0,113710.0,1.6657486]
[1754231607953,0.99097243,113720.0,113710.0,1.6657486]
[1754231608159,0.45429933,113720.0,113710.0,2.0723686]
[1754231608460,0.45429933,113720.0,113710.0,2.61814352]
[1754231608764,0.45429933,113720.0,113710.0,2.62414352]
[1754231608966,0.45229933,113720.0,113710.0,2.62414352]
[1754231609163,0.02259933,113720.0,113710.0,2.62414352]
[1754231609569,0.001,113740.0,113730.0,0.2578176]
[1754231609864,0.6075294,113750.0,113740.0,0.2578022]
[1754231610264,0.4317,113760.0,113750.0,0.2119667]
[1754231610568,0.3951571,113770.0,113760.0,0.2102913]
[1754231610759,0.3951571,113770.0,113760.0,1.16434622]
[1754231610760,0.4317,113770.0,113760.0,1.16434622]
[1754231610956,0.6074958,113770.0,113760.0,0.6185713]
[1754231612067,0.22236,113770.0,113760.0,1.16434622]
[1754231612264,0.003,113770.0,113760.0,1.16434622]
[1754231613168,0.04851,113770.0,113760.0,1.16434622]
[1754231613368,0.4845558,113770.0,113760.0,0.6185713]
[1754231613568,0.5822758,113770.0,113760.0,0.6185713]
[1754231613768,0.40448,113770.0,113760.0,0.6185713]
[1754231614562,0.40448,113770.0,113760.0,1.16434622]
[1754231614757,0.004,113770.0,113760.0,1.16434622]
[1754231614958,0.95051432,113800.0,113790.0,0.1784249]
[1754231614959,0.6953423,113800.0,113790.0,0.1784249]
[1754231615163,0.6953423,113800.0,113790.0,0.2119049]
[1754231615363,1.60191722,113800.0,113790.0,0.1757649]
[1754231616264,0.607465,113790.0,113780.0,0.219717]
[1754231616469,1.64587182,113790.0,113780.0,0.1757804]
[1754231616867,0.1757804,113780.0,113770.0,0.29716]
[1754231617068,1.51305532,113780.0,113770.0,0.2197325]
[1754231617265,0.3496459,113770.0,113760.0,1.8031898]
[1754231617459,0.6074959,113770.0,113760.0,1.8031898]
[1754231617876,0.6074959,113770.0,113760.0,1.8021898]
[1754231618171,0.6074959,113770.0,113760.0,1.8480098]
[1754231618367,0.6074959,113770.0,113760.0,2.2088098]
[1754231618564,0.21936,113770.0,113760.0,2.2088098]
[1754231618767,0.4317,113770.0,113760.0,2.2108098]
[1754231619072,0.6074959,113770.0,113760.0,2.2108098]
[1754231619670,0.21936,113770.0,113760.0,2.2118098]
[1754231619875,0.4815559,113770.0,113760.0,2.2118098]
[1754231620076,0.6074959,113770.0,113760.0,2.2118098]
[1754231623777,0.6074959,113770.0,113760.0,2.2098098]
[1754231623977,0.6074959,113770.0,113760.0,2.2108098]
[1754231625382,0.6084959,113770.0,113760.0,2.2098098]
[1754231627181,0.6084959,113770.0,113760.0,1.0277298]
[1754231629781,0.4327,113770.0,113760.0,1.0277298]
[1754231630378,0.6084957,113770.0,113760.0,1.0277298]
[1754231630779,0.6084957,113770.0,113760.0,1.0287298]
[1754231631280,0.6084957,113770.0,113760.0,1.0267298]
[1754231631578,0.6074957,113770.0,113760.0,1.0277298]
[1754231631874,0.4327,113770.0,113760.0,1.0287298]
[1754231632375,0.4327,113770.0,113760.0,1.0277298]
[1754231633374,0.6084959,113770.0,113760.0,1.0277298]
[1754231633574,0.4327,113770.0,113760.0,1.0277298]
[1754231635479,0.001,113770.0,113760.0,1.0277298]
[1754231635684,0.001,113770.0,113760.0,1.6671597]
[1754231637279,1.04864903,113800.0,113790.0,0.211715]
[1754231637582,1.0709859,113800.0,113790.0,0.534055]
[1754231637780,0.27495943,113820.0,113800.0,0.2636042]
[1754231637984,0.3527196,113810.0,113800.0,1.1046901]
[1754231638284,0.49747579,113810.0,113800.0,1.1046901]
[1754231638477,0.3966561,113810.0,113800.0,1.1046901]
[1754231638673,0.49747579,113810.0,113800.0,1.1046901]
[1754231639885,0.75167579,113810.0,113800.0,1.1046901]
[1754231640487,0.6508561,113810.0,113800.0,1.1046901]
[1754231640983,0.6528561,113810.0,113800.0,1.1056901]
[1754231641178,0.6558561,113810.0,113800.0,1.1056901]
[1754231642384,0.6528561,113810.0,113800.0,1.1056901]
[1754231642584,0.6558561,113810.0,113800.0,1.1056901]
[1754231643283,0.43617,113810.0,113800.0,1.1056901]
[1754231643484,0.5661941,113810.0,113800.0,1.1056901]
[1754231643786,0.6099041,113810.0,113800.0,1.1046901]
[1754231643976,0.6119041,113810.0,113800.0,1.1056901]
[1754231644380,1.15728252,113810.0,113800.0,1.0617542]
[1754231644683,1.15728252,113810.0,113800.0,1.0178183]
[1754231645185,0.6119041,113810.0,113800.0,1.0178183]
[1754231645486,1.15528252,113810.0,113800.0,1.0178183]
[1754231645985,1.15228252,113810.0,113800.0,1.0168183]
[1754231646289,1.15628252,113810.0,113800.0,1.0178183]
[1754231646887,1.15528252,113810.0,113800.0,1.0168183]
[1754231647086,1.15728252,113810.0,113800.0,1.0178183]
[1754231648684,0.6119041,113810.0,113800.0,1.0178183]
[1754231648887,1.15728252,113810.0,113800.0,1.0178183]
[1754231649587,1.25680957,113810.0,113800.0,0.3618]
[1754231649788,0.73369319,113810.0,113800.0,0.5375496]
[1754231649987,1.27907161,113810.0,113800.0,0.3618]
[1754231651292,1.27907161,113810.0,113800.0,0.5375496]
[1754231651498,0.73369319,113810.0,113800.0,0.9848796]
[1754231651900,0.58845614,113810.0,113800.0,0.9848796]
[1754231652196,0.63804614,113810.0,113800.0,0.9848796]
[1754231652701,0.02726204,113810.0,113800.0,1.53025802]
[1754231652896,0.20299614,113810.0,113800.0,1.53025802]
[1754231653092,0.19999614,113810.0,113800.0,1.53025802]
[1754231653291,0.20299614,113810.0,113800.0,1.53025802]
[1754231653496,1.18618456,113810.0,113800.0,0.9848796]
[1754231653690,1.18418456,113810.0,113800.0,0.7664996]
[1754231653897,1.27922414,113810.0,113800.0,0.5365495]
[1754231654099,1.27922414,113810.0,113800.0,0.3608]
[1754231654394,1.28122414,113810.0,113800.0,0.3618]
[1754231655291,0.73584572,113810.0,113800.0,0.3618]
[1754231655497,1.28122414,113810.0,113800.0,0.3618]
[1754231656898,1.27922414,113810.0,113800.0,0.3608]
[1754231657205,1.28122414,113810.0,113800.0,0.3618]
[1754231659303,1.28122414,113810.0,113800.0,0.5858496]
[1754231659696,1.28122414,113810.0,113800.0,0.9848796]
[1754231660698,0.73584572,113810.0,113800.0,0.9848796]
[1754231660897,1.28122414,113810.0,113800.0,0.9848796]
[1754231662697,1.27822414,113810.0,113800.0,0.9848796]
[1754231664903,1.27722414,113810.0,113800.0,0.9838796]
[1754231665299,1.27771139,113810.0,113800.0,0.9838796]
[1754231666499,1.34073063,113810.0,113800.0,0.3608]
[1754231667393,1.51646663,113810.0,113800.0,0.3608]
[1754231668109,0.97108821,113810.0,113800.0,0.3608]
[1754231668406,1.51746663,113810.0,113800.0,0.3608]
[1754231669408,1.51946663,113810.0,113800.0,0.3608]
[1754231670011,1.51746663,113810.0,113800.0,0.3608]
[1754231670309,1.52046663,113810.0,113800.0,0.3608]
[1754231671011,0.6135595,113800.0,113790.0,0.3608]
[1754231671202,1.18168721,113800.0,113790.0,0.3608]
[1754231671405,1.27326355,113800.0,113790.0,0.3608]
[1754231672407,1.27326355,113800.0,113790.0,0.4091]
[1754231672611,1.27326355,113800.0,113790.0,0.0483]
[1754231673115,1.27726355,113800.0,113790.0,0.0483]
[1754231674009,1.27726355,113800.0,113790.0,0.4091]
[1754231674716,1.27726355,113800.0,113790.0,0.0483]
[1754231675714,1.27726355,113800.0,113790.0,0.4091]
[1754231676210,1.27726355,113800.0,113790.0,0.44224]
[1754231676409,1.27726355,113800.0,113790.0,0.80813]
[1754231676611,1.27726355,113800.0,113790.0,0.983895]
[1754231677017,0.73188513,113800.0,113790.0,0.983895]
[1754231677208,0.43553513,113800.0,113790.0,0.983895]
[1754231677408,0.48632879,113800.0,113790.0,0.983895]
[1754231677609,0.56012879,113800.0,113790.0,0.983895]
[1754231677809,0.37454879,113800.0,113790.0,0.983895]
[1754231678117,0.20249889,113800.0,113790.0,1.52927342]
[1754231678308,0.02674929,113800.0,113790.0,1.52927342]
[1754231680319,0.20249889,113800.0,113790.0,0.983895]
[1754231680811,1.13999731,113800.0,113790.0,0.983895]
[1754231681013,1.18556731,113800.0,113790.0,0.983895]
[1754231681717,0.64018889,113800.0,113790.0,0.983895]
[1754231682022,1.18556731,113800.0,113790.0,0.983895]
[1754231682320,1.18556731,113800.0,113790.0,0.971115]
[1754231683114,0.35403889,113800.0,113790.0,0.971115]
[1754231683309,0.25217889,113800.0,113790.0,0.971115]
[1754231683519,0.20249889,113800.0,113790.0,0.971115]
[1754231684118,0.20249889,113800.0,113790.0,1.51649342]
[1754231684316,0.02674929,113800.0,113790.0,1.51649342]
[1754231689025,0.004,113800.0,113790.0,1.51649342]
[1754231690618,0.1797496,113800.0,113790.0,0.971115]
[1754231690821,0.64066811,113800.0,113790.0,1.245675]
[1754231691127,1.18604653,113800.0,113790.0,1.245675]
[1754231691314,1.18604653,113800.0,113790.0,0.971115]
[1754231691723,0.64066811,113800.0,113790.0,0.971115]
[1754231692838,1.18604653,113800.0,113790.0,0.971115]
[1754231694020,0.64066811,113800.0,113790.0,0.971115]
[1754231701234,1.18604653,113800.0,113790.0,0.79535]
[1754231701532,1.2813258,113800.0,113790.0,0.3608]
[1754231701729,1.2813258,113800.0,113790.0,0.40984]
[1754231702437,1.2813258,113800.0,113790.0,0.585605]
[1754231702732,1.2773258,113800.0,113790.0,0.585605]
[1754231702927,1.2793258,113800.0,113790.0,0.589605]
[1754231703129,1.2793258,113800.0,113790.0,0.41384]
[1754231703633,1.2783258,113800.0,113790.0,0.41384]
[1754231703835,1.2803258,113800.0,113790.0,0.759735]
[1754231704037,1.2803258,113800.0,113790.0,0.975115]
[1754231704526,1.2803258,113800.0,113790.0,0.971115]
[1754231707232,0.73494738,113800.0,113790.0,0.971115]
[1754231707634,0.47987738,113800.0,113790.0,0.971115]
[1754231707838,0.68937738,113800.0,113790.0,0.971115]
[1754231708040,0.47987738,113800.0,113790.0,1.51649342]
[1754231708339,0.35351821,113800.0,113790.0,1.51649342]
[1754231708734,0.20197821,113800.0,113790.0,1.51649342]
[1754231709133,0.20197821,113800.0,113790.0,0.971115]
[1754231710730,0.02622851,113800.0,113790.0,1.51649342]
[1754231719158,0.25672237,113820.0,113810.0,0.5884386]
[1754231719444,0.21279117,113820.0,113810.0,1.85541702]
[1754231720339,0.26064117,113820.0,113810.0,1.85541702]
[1754231721833,0.26464117,113820.0,113810.0,1.85641702]
[1754231722233,0.04106037,113820.0,113810.0,1.85641702]
[1754231722439,0.04106037,113820.0,113810.0,1.3110386]
[1754231722738,0.04106037,113820.0,113810.0,2.12937702]
[1754231723230,0.2635679,113830.0,113820.0,0.3291188]
[1754231723436,0.3114179,113830.0,113820.0,0.8656376]
[1754231723636,0.5589579,113830.0,113820.0,0.8656376]
[1754231723938,0.7034579,113830.0,113820.0,0.8656376]
[1754231724140,1.24883632,113830.0,113820.0,0.8656376]
[1754231724341,0.7034579,113830.0,113820.0,0.8656376]
[1754231724942,1.29298394,113830.0,113820.0,0.8656376]
[1754231725140,0.74760552,113830.0,113820.0,0.8666376]
[1754231725334,1.29298394,113830.0,113820.0,0.8666376]
[1754231725636,0.74760552,113830.0,113820.0,0.8666376]
[1754231725835,1.29298394,113830.0,113820.0,0.5375189]
[1754231726046,1.29298394,113830.0,113820.0,0.3618]
[1754231726235,1.29298394,113830.0,113820.0,0.5375189]
[1754231726435,0.74860552,113830.0,113820.0,0.6634289]
[1754231726638,1.29398394,113830.0,113820.0,0.8640089]
[1754231730037,1.29398394,113830.0,113820.0,0.8702289]
[1754231731045,1.31709353,113830.0,113820.0,0.8702289]
[1754231733045,0.77171511,113830.0,113820.0,0.8702289]
[1754231733747,0.72778741,113830.0,113820.0,0.8702289]
[1754231734240,0.11509721,113830.0,113820.0,1.41560732]
[1754231734639,0.16294721,113830.0,113820.0,1.41560732]
[1754231735343,0.33865061,113830.0,113820.0,1.41560732]
[1754231735840,0.58724061,113830.0,113820.0,1.41560732]
[1754231736247,0.68385061,113830.0,113820.0,1.41560732]
[1754231737648,0.06825721,113830.0,113820.0,1.41560732]
[1754231737844,0.11610721,113830.0,113820.0,1.41560732]
[1754231738342,0.29181061,113830.0,113820.0,1.41560732]
[1754231738543,0.33865061,113830.0,113820.0,1.41560732]
[1754231738744,0.41042061,113830.0,113820.0,1.41560732]
[1754231740740,0.56115061,113830.0,113820.0,1.41560732]
[1754231741645,0.59347061,113830.0,113820.0,0.8702289]
[1754231741850,0.69185061,113830.0,113820.0,0.8702289]
[1754231746551,0.69285061,113830.0,113820.0,1.1498689]
[1754231747146,0.69285061,113830.0,113820.0,1.1468689]
[1754231747345,0.69285061,113830.0,113820.0,1.1478689]
[1754231748956,0.06925721,113830.0,113820.0,1.1478689]
[1754231749256,0.06925721,113830.0,113820.0,1.69324732]
[1754231749452,0.29466061,113830.0,113820.0,1.69324732]
[1754231749651,0.16753721,113830.0,113820.0,1.69324732]
[1754231749851,0.34324061,113830.0,113820.0,1.69324732]
[1754231750153,0.41653061,113830.0,113820.0,1.69324732]
[1754231750455,0.69657061,113830.0,113820.0,1.69324732]
[1754231751458,0.52086721,113830.0,113820.0,1.69324732]